lending/lending_fUSD_20250429
["ID","MTS","AMOUNT","RATE_DAILY","PERIOD"]
[359368054,1745951464623,-530.0,0.00030894,2]
[359368055,1745951464633,-470.0,0.00030894,2]
[359368056,1745951464643,-530.0,0.00030894,2]
[359368057,1745951464652,-530.0,0.00030894,2]
[359368058,1745951464662,-530.0,0.00030894,2]
[359368059,1745951464671,-470.0,0.00030894,2]
[359368060,1745951464680,-293.94794228,0.00030894,2]
[359368061,1745951464690,-530.0,0.00030894,2]
[359368062,1745951464699,-530.0,0.00030894,2]
[359368063,1745951464708,-530.0,0.00030894,2]
[359368064,1745951464717,-530.0,0.00030894,2]
[359368065,1745951464726,-607.98,0.00030894,2]
[359368066,1745951464735,-530.0,0.00030894,2]
[359368067,1745951464744,-530.0,0.00030894,2]
[359368068,1745951464753,-239.79923301,0.00030894,2]
[359368069,1745951464763,-530.0,0.00030894,2]
[359368070,1745951464812,-530.0,0.00030894,2]
[359368071,1745951464823,-470.0,0.00030894,2]
[359368072,1745951464833,-530.0,0.00030894,2]
[359368073,1745951464843,-530.0,0.00030894,2]
[359368074,1745951464852,-530.0,0.00030894,2]
[359368075,1745951464862,-470.0,0.00030894,2]
[359368076,1745951464871,-470.0,0.00030894,2]
[359368077,1745951464880,-530.0,0.00030894,2]
[359368078,1745951464890,-530.0,0.00030894,2]
[359368079,1745951464899,-530.0,0.00030894,2]
[359368080,1745951464908,-530.0,0.00030894,2]
[359368081,1745951464917,-470.0,0.00030894,2]
[359368082,1745951464927,-530.0,0.00030894,2]
[359368083,1745951464936,-530.0,0.00030894,2]
[359368084,1745951464946,-603.07223589,0.00030894,2]
[359368085,1745951464956,-530.0,0.00030894,2]
[359368086,1745951464966,-530.0,0.00030894,2]
[359368087,1745951464975,-530.0,0.00030894,2]
[359368088,1745951464984,-584.57021505,0.00030894,2]
[359368089,1745951464994,-537.27863085,0.00030894,2]
[359368090,1745951465004,-541.7,0.00030894,2]
[359368091,1745951465013,-530.0,0.00030894,2]
[359368092,1745951465023,-492.5,0.00030894,2]
[359368093,1745951465033,-517.76098159,0.00030894,2]
[359368094,1745951465043,-470.0,0.00030894,2]
[359368095,1745951465052,-530.0,0.00030894,2]
[359368096,1745951465063,-530.0,0.00030894,2]
[359368097,1745951465073,-470.0,0.00030894,2]
[359368098,1745951465083,-470.0,0.00030894,2]
[359368099,1745951465094,-530.0,0.00030894,2]
[359368100,1745951465103,-470.0,0.00030894,2]
[359368101,1745951465113,-530.0,0.00030894,2]
[359368102,1745951465122,-530.0,0.00030894,2]
[359368103,1745951465132,-470.0,0.00030894,2]
[359368104,1745951465143,-470.0,0.00030894,2]
[359368105,1745951465153,-510.15,0.00030894,2]
[359368106,1745951465163,-470.0,0.00030894,2]
[359368107,1745951465173,-530.0,0.00030894,2]
[359368108,1745951465182,-470.0,0.00030894,2]
[359368109,1745951465192,-470.0,0.00030894,2]
[359368110,1745951465202,-470.0,0.00030894,2]
[359368111,1745951465211,-470.0,0.00030894,2]
[359368112,1745951465221,-470.0,0.00030894,2]
[359368113,1745951465230,-470.0,0.00030894,2]
[359368114,1745951465240,-538.06516779,0.00030894,2]
[359368115,1745951465250,-534.40767642,0.00030894,2]
[359368116,1745951465260,-156.06539701,0.00030894,2]
[359368117,1745951465270,-470.0,0.00030894,2]
[359368118,1745951465280,-573.1619629,0.00030894,2]
[359368119,1745951465290,-530.0,0.00030894,2]
[359368120,1745951465299,-470.0,0.00030894,2]
[359368121,1745951465309,-530.0,0.00030894,2]
[359368122,1745951465319,-530.0,0.00030894,2]
[359368123,1745951465328,-530.0,0.00030894,2]
[359368124,1745951465340,-470.0,0.00030894,2]
[359368125,1745951465350,-470.0,0.00030894,2]
[359368126,1745951465360,-470.0,0.00030894,2]
[359368127,1745951465370,-530.0,0.00030894,2]
[359368128,1745951465379,-470.0,0.00030894,2]
[359368129,1745951465388,-470.0,0.00030894,2]
[359368130,1745951465398,-530.0,0.00030894,2]
[359368131,1745951465408,-470.0,0.00030894,2]
[359368132,1745951465418,-530.0,0.00030894,2]
[359368133,1745951465428,-535.49607322,0.00030894,2]
[359368134,1745951465439,-575.38309805,0.00030894,2]
[359368135,1745951465449,-470.0,0.00030894,2]
[359368136,1745951465459,-470.0,0.00030894,2]
[359368137,1745951465468,-470.0,0.00030894,2]
[359368138,1745951465478,-541.76668745,0.00030894,2]
[359368139,1745951465487,-536.81243163,0.00030894,2]
[359368140,1745951465496,-530.0,0.00030894,2]
[359368141,1745951465506,-470.0,0.00030894,2]
[359368142,1745951465516,-470.0,0.00030894,2]
[359368143,1745951465525,-530.0,0.00030894,2]
[359368144,1745951465535,-470.0,0.00030894,2]
[359368145,1745951465545,-315.43523411,0.00030894,2]
[359368146,1745951465556,-470.0,0.00030894,2]
[359368147,1745951465565,-470.0,0.00030894,2]
[359368148,1745951465575,-500.0,0.00030894,2]
[359368149,1745951465585,-530.0,0.00030894,2]
[359368150,1745951465594,-500.0,0.00030894,2]
[359368151,1745951465603,-470.0,0.00030894,2]
[359368152,1745951465613,-540.42783081,0.00030894,2]
[359368153,1745951465622,-500.0,0.00030894,2]
[359368154,1745951465631,-284.54,0.00030894,2]
[359368155,1745951465640,-470.0,0.00030894,2]
[359368156,1745951465651,-500.0,0.00030894,2]
[359368157,1745951465664,-470.0,0.00030894,2]
[359368158,1745951465673,-470.0,0.00030894,2]
[359368159,1745951465683,-530.0,0.00030894,2]
[359368160,1745951465692,-500.0,0.00030894,2]
[359368161,1745951465702,-464.77,0.00030894,2]
[359368162,1745951465712,-537.96911581,0.00030894,2]
[359368163,1745951465721,-150.8,0.00030894,2]
[359368164,1745951465730,-470.0,0.00030894,2]
[359368165,1745951465740,-470.0,0.00030894,2]
[359368166,1745951465749,-470.0,0.00030894,2]
[359368167,1745951465758,-530.0,0.00030894,2]
[359368168,1745951465770,-530.0,0.00030894,2]
[359368169,1745951465779,-530.0,0.00030894,2]
[359368170,1745951465788,-470.0,0.00030894,2]
[359368171,1745951465798,-530.0,0.00030894,2]
[359368172,1745951465807,-470.0,0.00030894,2]
[359368173,1745951465816,-470.0,0.00030894,2]
[359368174,1745951465826,-470.0,0.00030894,2]
[359368175,1745951465836,-530.0,0.00030894,2]
[359368176,1745951465845,-530.0,0.00030894,2]
[359368177,1745951465855,-470.0,0.00030894,2]
[359368178,1745951465864,-470.0,0.00030894,2]
[359368179,1745951465873,-470.0,0.00030894,2]
[359368180,1745951465883,-530.0,0.00030894,2]
[359368181,1745951465893,-291.95,0.00030894,2]
[359368182,1745951465903,-530.0,0.00030894,2]
[359368183,1745951465913,-470.0,0.00030894,2]
[359368184,1745951465923,-530.0,0.00030894,2]
[359368185,1745951465937,-530.0,0.00030894,2]
[359368186,1745951465947,-530.0,0.00030894,2]
[359368187,1745951465956,-530.0,0.00030894,2]
[359368188,1745951465967,-530.0,0.00030894,2]
[359368189,1745951465977,-530.0,0.00030894,2]
[359368190,1745951465987,-470.0,0.00030894,2]
[359368191,1745951465996,-470.0,0.00030894,2]
[359368192,1745951466006,-530.0,0.00030894,2]
[359368193,1745951466017,-470.0,0.00030894,2]
[359368194,1745951466027,-470.0,0.00030894,2]
[359368195,1745951466036,-530.0,0.00030894,2]
[359368196,1745951466045,-470.0,0.00030955,2]
[359368197,1745951466055,-470.0,0.00030955,2]
[359368198,1745951466064,-522.72,0.00030955,2]
[359368199,1745951466074,-470.0,0.00030955,2]
[359368200,1745951466084,-470.0,0.00030955,2]
[359368201,1745951466093,-470.0,0.00030955,2]
[359368202,1745951466104,-470.0,0.00030957,2]
[359368203,1745951466114,-470.0,0.00030957,2]
[359368204,1745951466123,-470.0,0.00030957,2]
[359368205,1745951466135,-470.0,0.00030957,2]
[359368206,1745951466146,-204.93,0.00030957,2]
[359368207,1745951466157,-470.0,0.00030957,2]
[359368208,1745951466167,-470.0,0.00030957,2]
[359368209,1745951466177,-470.0,0.00030957,2]
[359368210,1745951466186,-656.06,0.00030957,2]
[359368211,1745951466196,-588.03,0.00030957,2]
[359368212,1745951466206,-7990.91,0.00030957,2]
[359368213,1745951466216,-933.87,0.00030957,2]
[359368214,1745951466226,-470.0,0.00030957,2]
[359368215,1745951466235,-470.0,0.00030957,2]
[359368216,1745951466245,-470.0,0.00030957,2]
[359368217,1745951466254,-470.0,0.00030957,2]
[359368218,1745951466264,-470.0,0.00030957,2]
[359368219,1745951466273,-158.305646,0.00030958,2]
[359368220,1745951466283,-1021.44,0.00030958,2]
[359368221,1745951466292,-470.0,0.00030958,2]
[359368222,1745951466302,-600.0,0.00031,2]
[359368223,1745951466311,-340.46,0.00031168,2]
[359368224,1745951466321,-530.0,0.00031168,2]
[359368225,1745951466331,-161.26127527,0.00031168,2]
[359368226,1745951466342,-560.0,0.00031168,2]
[359368227,1745951466351,-470.0,0.00031168,2]
[359368228,1745951466361,-208.98,0.00031168,2]
[359368229,1745951466372,-470.0,0.00031168,2]
[359368230,1745951466382,-310.46,0.00031168,2]
[359368231,1745951466391,-202.74932936,0.00031168,2]
[359368232,1745951466401,-560.0,0.00031168,2]
[359368233,1745951466411,-470.0,0.00031168,2]
[359368234,1745951466420,-470.0,0.00031168,2]
[359368235,1745951466430,-413.34,0.00031168,2]
[359368236,1745951466440,-470.0,0.00031168,2]
[359368237,1745951466449,-418.04,0.00031168,2]
[359368238,1745951466459,-470.0,0.00031168,2]
[359368239,1745951466468,-600.6359555,0.00031168,2]
[359368240,1745951466478,-470.0,0.00031168,2]
[359368241,1745951466488,-530.0,0.00031168,2]
[359368242,1745951466498,-470.0,0.00031168,2]
[359368243,1745951466507,-256.26,0.00031168,2]
[359368244,1745951466517,-530.0,0.00031168,2]
[359368245,1745951466526,-530.0,0.00031168,2]
[359368246,1745951466536,-339.34556529,0.00031168,2]
[359368247,1745951466546,-152.14917352,0.00031168,2]
[359368248,1745951466555,-158.89629743,0.00031168,2]
[359368249,1745951466565,-470.0,0.00031168,2]
[359368250,1745951466574,-470.0,0.00031168,2]
[359368251,1745951466585,-572.21880561,0.00031168,2]
[359368252,1745951466594,-470.0,0.00031168,2]
[359368253,1745951466604,-530.0,0.00031168,2]
[359368254,1745951466614,-530.0,0.00031168,2]
[359368255,1745951466624,-470.0,0.00031168,2]
[359368256,1745951466633,-470.0,0.00031168,2]
[359368257,1745951466642,-408.22,0.00031168,2]
[359368258,1745951466652,-470.0,0.00031168,2]
[359368259,1745951466661,-245.78,0.00031168,2]
[359368260,1745951466670,-470.0,0.00031168,2]
[359368261,1745951466679,-214.52,0.00031168,2]
[359368262,1745951466688,-470.0,0.00031168,2]
[359368263,1745951466698,-470.0,0.00031168,2]
[359368264,1745951466707,-233.6,0.00031168,2]
[359368265,1745951466716,-525.68,0.00031168,2]
[359368266,1745951466726,-162.1,0.00031168,2]
[359368267,1745951466736,-565.8946513,0.00031168,2]
[359368268,1745951466746,-185.89467027,0.00031168,2]
[359368269,1745951466755,-470.0,0.00031168,2]
[359368270,1745951466765,-470.0,0.00031168,2]
[359368271,1745951466774,-530.0,0.00031168,2]
[359368272,1745951466784,-530.0,0.00031168,2]
[359368273,1745951466794,-470.0,0.00031168,2]
[359368274,1745951466803,-470.0,0.00031168,2]
[359368275,1745951466813,-470.0,0.00031168,2]
[359368276,1745951466823,-470.0,0.00031168,2]
[359368277,1745951466832,-530.0,0.00031168,2]
[359368278,1745951466843,-470.0,0.00031168,2]
[359368279,1745951466852,-169.82096277,0.00031168,2]
[359368280,1745951466862,-470.0,0.00031168,2]
[359368281,1745951466871,-470.0,0.00031168,2]
[359368282,1745951466880,-530.0,0.00031168,2]
[359368283,1745951466890,-562.51961842,0.00031168,2]
[359368284,1745951466900,-530.0,0.00031168,2]
[359368285,1745951466910,-206.81917816,0.00031168,2]
[359368286,1745951466920,-530.0,0.00031168,2]
[359368287,1745951466930,-470.0,0.00031168,2]
[359368288,1745951466940,-563.42064864,0.00031168,2]
[359368289,1745951466949,-568.6,0.00031168,2]
[359368290,1745951466959,-617.28,0.00031168,2]
[359368291,1745951466968,-562.50032003,0.00031168,2]
[359368292,1745951466978,-395.80885594,0.00031168,2]
[359368293,1745951466988,-571.07100259,0.00031168,2]
[359368294,1745951466999,-470.0,0.00031168,2]
[359368295,1745951467009,-470.0,0.00031168,2]
[359368296,1745951467019,-480.71,0.00031168,2]
[359368297,1745951467028,-565.54894061,0.00031168,2]
[359368298,1745951467039,-422.23194376,0.00031168,2]
[359368299,1745951467049,-470.0,0.00031168,2]
[359368300,1745951467059,-470.0,0.00031168,2]
[359368301,1745951467070,-470.0,0.00031168,2]
[359368302,1745951467080,-470.0,0.00031168,2]
[359368303,1745951467090,-566.18,0.00031168,2]
[359368304,1745951467100,-180.72877691,0.00031168,2]
[359368305,1745951467110,-582.34,0.00031168,2]
[359368306,1745951467120,-500.0,0.00031168,2]
[359368307,1745951467130,-470.0,0.00031168,2]
[359368308,1745951467141,-470.0,0.00031168,2]
[359368309,1745951467151,-470.0,0.00031168,2]
[359368310,1745951467161,-470.0,0.00031168,2]
[359368311,1745951467170,-530.0,0.00031168,2]
[359368312,1745951467180,-530.0,0.00031168,2]
[359368313,1745951467190,-470.0,0.00031168,2]
[359368314,1745951467199,-506.36,0.00031168,2]
[359368315,1745951467209,-470.0,0.00031168,2]
[359368316,1745951467220,-619.46,0.00031168,2]
[359368317,1745951467229,-470.0,0.00031168,2]
[359368318,1745951467239,-470.0,0.00031168,2]
[359368319,1745951467249,-470.0,0.00031229,2]
[359368320,1745951467260,-470.0,0.00031229,2]
[359368321,1745951467269,-470.0,0.00031229,2]
[359368322,1745951467279,-470.0,0.00031229,2]
[359368323,1745951467289,-530.0,0.00031229,2]
[359368324,1745951467299,-574.48,0.00031231,2]
[359368325,1745951467308,-470.0,0.00031231,2]
[359368326,1745951467318,-587.87821716,0.00031231,2]
[359368327,1745951467328,-470.0,0.00031231,2]
[359368328,1745951467338,-496.96,0.00031231,2]
[359368329,1745951467348,-256.91,0.00031231,2]
[359368330,1745951467357,-470.0,0.00031231,2]
[359368331,1745951467367,-656.06,0.00031231,2]
[359368332,1745951467377,-588.03,0.00031231,2]
[359368333,1745951467386,-7990.91,0.00031231,2]
[359368334,1745951467396,-933.87,0.00031231,2]
[359368335,1745951467406,-470.0,0.00031231,2]
[359368336,1745951467416,-470.0,0.00031231,2]
[359368337,1745951467425,-470.0,0.00031231,2]
[359368338,1745951467435,-470.0,0.00031231,2]
[359368339,1745951467444,-470.0,0.00031231,2]
[359368340,1745951467454,-1021.44,0.00031232,2]
[359368341,1745951467463,-470.0,0.00031232,2]
[359368342,1745951467473,-2070.80869512,0.00031245,9]
[359368343,1745951467482,-151.0,0.00031245,7]
[359368344,1745951467491,-151.0,0.00031245,7]
[359368345,1745951467501,-151.0,0.00031245,7]
[359368346,1745951467510,-151.0,0.00031245,7]
[359368347,1745951467520,-151.0,0.00031245,7]
[359368348,1745951467529,-151.0,0.00031245,7]
[359368349,1745951467538,-151.0,0.00031245,7]
[359368350,1745951467548,-151.0,0.00031245,7]
[359368351,1745951467558,-151.0,0.00031245,7]
[359368352,1745951467568,-363.3,0.00031442,2]
[359368353,1745951467578,-371.8,0.00031442,2]
[359368354,1745951467588,-470.0,0.00031442,2]
[359368355,1745951467598,-470.0,0.00031442,2]
[359368356,1745951467607,-583.32,0.00031442,2]
[359368357,1745951467617,-433.0,0.00031442,2]
[359368358,1745951467628,-470.0,0.00031442,2]
[359368359,1745951467637,-612.96,0.00031442,2]
[359368360,1745951467647,-494.34,0.00031442,2]
[359368361,1745951467656,-373.1,0.00031442,2]
[359368362,1745951467666,-236.68,0.00031442,2]
[359368363,1745951467675,-470.0,0.00031442,2]
[359368364,1745951467685,-151.32,0.00031442,2]
[359368365,1745951467695,-176.04,0.00031442,2]
[359368366,1745951467704,-470.0,0.00031442,2]
[359368367,1745951467714,-470.0,0.00031442,2]
[359368368,1745951467725,-219.1,0.00031442,2]
[359368369,1745951467734,-470.0,0.00031442,2]
[359368370,1745951467743,-284.55215574,0.00031442,2]
[359368371,1745951467753,-308.88,0.00031442,2]
[359368372,1745951467763,-470.0,0.00031442,2]
[359368373,1745951467772,-266.95,0.00031442,2]
[359368374,1745951467782,-470.0,0.00031442,2]
[359368375,1745951467791,-530.0,0.00031442,2]
[359368376,1745951467801,-530.0,0.00031442,2]
[359368377,1745951467812,-231.94,0.00031442,2]
[359368378,1745951467822,-470.0,0.00031442,2]
[359368379,1745951467832,-470.0,0.00031442,2]
[359368380,1745951467843,-470.0,0.00031442,2]
[359368381,1745951467853,-470.0,0.00031442,2]
[359368382,1745951467863,-271.85,0.00031442,2]
[359368383,1745951467873,-470.0,0.00031442,2]
[359368384,1745951467882,-546.04,0.00031442,2]
[359368385,1745951467892,-559.58,0.00031442,2]
[359368386,1745951467902,-470.0,0.00031442,2]
[359368387,1745951467911,-470.0,0.00031442,2]
[359368388,1745951467923,-470.0,0.00031442,2]
[359368389,1745951467935,-177.21269737,0.00031442,2]
[359368390,1745951467946,-470.0,0.00031442,2]
[359368391,1745951467957,-470.0,0.00031442,2]
[359368392,1745951467966,-253.1,0.00031442,2]
[359368393,1745951467976,-470.0,0.00031503,2]
[359368394,1745951467986,-470.0,0.00031503,2]
[359368395,1745951467996,-470.0,0.00031503,2]
[359368396,1745951468006,-470.0,0.00031503,2]
[359368397,1745951468017,-470.0,0.00031505,2]
[359368398,1745951468027,-470.0,0.00031505,2]
[359368399,1745951468037,-470.0,0.00031505,2]
[359368400,1745951468048,-656.06,0.00031505,2]
[359368401,1745951468058,-588.03,0.00031505,2]
[359368402,1745951468069,-7990.91,0.00031505,2]
[359368403,1745951468079,-933.87,0.00031505,2]
[359368404,1745951468089,-470.0,0.00031505,2]
[359368405,1745951468099,-470.0,0.00031505,2]
[359368406,1745951468110,-470.0,0.00031505,2]
[359368407,1745951468119,-470.0,0.00031505,2]
[359368408,1745951468130,-470.0,0.00031505,2]
[359368409,1745951468141,-452.25,0.00031505,2]
[359368410,1745951468151,-158.305646,0.00031506,2]
[359368411,1745951468160,-1021.44,0.00031506,2]
[359368412,1745951468170,-470.0,0.00031506,2]
[359368413,1745951468180,-1146.16,0.00031715,2]
[359368414,1745951468190,-470.0,0.00031716,2]
[359368415,1745951468199,-470.0,0.00031716,2]
[359368416,1745951468209,-470.0,0.00031716,2]
[359368417,1745951468219,-470.0,0.00031716,2]
[359368418,1745951468229,-175.3,0.00031716,2]
[359368419,1745951468239,-317.74,0.00031716,2]
[359368420,1745951468249,-470.0,0.00031716,2]
[359368421,1745951468259,-372.12,0.00031716,2]
[359368422,1745951468269,-470.0,0.00031716,2]
[359368423,1745951468278,-448.64,0.00031716,2]
[359368424,1745951468289,-470.0,0.00031716,2]
[359368425,1745951468299,-470.0,0.00031716,2]
[359368426,1745951468308,-470.0,0.00031716,2]
[359368427,1745951468318,-470.0,0.00031716,2]
[359368428,1745951468328,-470.0,0.00031716,2]
[359368429,1745951468341,-338.2,0.00031716,2]
[359368430,1745951468352,-470.0,0.00031716,2]
[359368431,1745951468362,-175.94,0.00031716,2]
[359368432,1745951468373,-470.0,0.00031716,2]
[359368433,1745951468383,-8993.82626913,0.00031744,2]
[359368434,1745951468393,-470.0,0.00031777,2]
[359368435,1745951468403,-222.38,0.00031777,2]
[359368436,1745951468414,-470.0,0.00031777,2]
[359368437,1745951468550,-470.0,0.00031777,2]
[359368438,1745951468574,-470.0,0.00031779,2]
[359368439,1745951468585,-470.0,0.00031779,2]
[359368440,1745951468594,-470.0,0.00031779,2]
[359368441,1745951468604,-656.06,0.00031779,2]
[359368442,1745951468614,-588.03,0.00031779,2]
[359368443,1745951468625,-7990.91,0.00031779,2]
[359368444,1745951468635,-933.87,0.00031779,2]
[359368445,1745951468646,-470.0,0.00031779,2]
[359368446,1745951468656,-470.0,0.00031779,2]
[359368447,1745951468665,-470.0,0.00031779,2]
[359368448,1745951468674,-470.0,0.00031779,2]
[359368449,1745951468684,-470.0,0.00031779,2]
[359368450,1745951468693,-158.305646,0.0003178,2]
[359368451,1745951468702,-1021.44,0.0003178,2]
[359368452,1745951468712,-470.0,0.0003178,2]
[359368453,1745951468721,-327.59,0.00031961,2]
[359368454,1745951468734,-470.0,0.0003199,2]
[359368455,1745951468743,-470.0,0.0003199,2]
[359368456,1745951468753,-470.0,0.0003199,2]
[359368457,1745951468763,-330.2,0.0003199,2]
[359368458,1745951468772,-470.0,0.0003199,2]
[359368459,1745951468781,-470.0,0.0003199,2]
[359368460,1745951468790,-287.21,0.0003199,2]
[359368461,1745951468800,-470.0,0.0003199,2]
[359368462,1745951468809,-178.48,0.0003199,2]
[359368463,1745951468818,-229.68,0.0003199,2]
[359368464,1745951468827,-470.0,0.0003199,2]
[359368465,1745951468838,-470.0,0.0003199,2]
[359368466,1745951468847,-366.99,0.0003199,2]
[359368467,1745951468856,-1512.5610527,0.00032023,2]
[359368468,1745951468866,-429.39,0.00032051,2]
[359368469,1745951468875,-470.0,0.00032051,2]
[359368470,1745951468885,-470.0,0.00032051,2]
[359368471,1745951468894,-628531.65676082,0.00032053,2]
[359368472,1745951468903,-470.0,0.00032053,2]
[359368473,1745951468913,-470.0,0.00032053,2]
[359368474,1745951468922,-470.0,0.00032053,2]
[359368475,1745951468932,-656.06,0.00032053,2]
[359368476,1745951468945,-588.03,0.00032053,2]
[359368477,1745951468955,-7990.91,0.00032053,2]
[359368478,1745951468965,-933.87,0.00032053,2]
[359368479,1745951468977,-470.0,0.00032053,2]
[359368480,1745951468988,-470.0,0.00032053,2]
[359368481,1745951468998,-470.0,0.00032053,2]
[359368482,1745951469008,-470.0,0.00032053,2]
[359368483,1745951469020,-470.0,0.00032053,2]
[359368484,1745951469031,-158.305646,0.00032054,2]
[359368485,1745951469040,-1021.44,0.00032054,2]
[359368486,1745951469051,-470.0,0.00032054,2]
[359368487,1745951469061,-2070.80869512,0.00032107,10]
[359368488,1745951469072,-470.0,0.00032264,2]
[359368489,1745951469081,-470.0,0.00032264,2]
[359368490,1745951469091,-470.0,0.00032264,2]
[359368491,1745951469101,-470.0,0.00032264,2]
[359368492,1745951469110,-470.0,0.00032264,2]
[359368493,1745951469119,-470.0,0.00032264,2]
[359368494,1745951469129,-470.0,0.00032264,2]
[359368495,1745951469139,-470.0,0.00032264,2]
[359368496,1745951469148,-152.0,0.00032312,3]
[359368497,1745951469158,-470.0,0.00032325,2]
[359368498,1745951469168,-470.0,0.00032325,2]
[359368499,1745951469177,-470.0,0.00032327,2]
[359368500,1745951469187,-470.0,0.00032327,2]
[359368501,1745951469196,-470.0,0.00032327,2]
[359368502,1745951469206,-656.06,0.00032327,2]
[359368503,1745951469217,-588.03,0.00032327,2]
[359368504,1745951469227,-7990.91,0.00032327,2]
[359368505,1745951469237,-933.87,0.00032327,2]
[359368506,1745951469247,-470.0,0.00032327,2]
[359368507,1745951469257,-559.76,0.00032327,2]
[359368508,1745951469266,-470.0,0.00032327,2]
[359368509,1745951469276,-470.0,0.00032327,2]
[359368510,1745951469285,-470.0,0.00032327,2]
[359368511,1745951469295,-1021.44,0.00032328,2]
[359368512,1745951469305,-470.0,0.00032328,2]
[359368513,1745951469314,-4422.81866845,0.00032446,2]
[359368514,1745951469324,-6111.44517244,0.00032446,2]
[359368515,1745951469336,-268.04,0.00032538,2]
[359368516,1745951469346,-470.0,0.00032538,2]
[359368517,1745951469356,-470.0,0.00032538,2]
[359368518,1745951469365,-470.0,0.00032538,2]
[359368519,1745951469375,-470.0,0.00032538,2]
[359368520,1745951469384,-226.07,0.00032538,2]
[359368521,1745951469394,-470.0,0.00032538,2]
[359368522,1745951469403,-470.0,0.00032538,2]
[359368523,1745951469413,-877.0,0.0003258,2]
[359368524,1745951469422,-1000.388,0.0003258,2]
[359368525,1745951469432,-174.07461068,0.00032595,15]
[359368526,1745951469441,-470.0,0.00032599,2]
[359368527,1745951469451,-470.0,0.00032599,2]
[359368528,1745951469462,-5348.0,0.000326,5]
[359368529,1745951469471,-470.0,0.00032601,2]
[359368530,1745951469481,-366.27,0.00032601,2]
[359368531,1745951469490,-553.07,0.00032601,2]
[359368532,1745951469502,-656.06,0.00032601,2]
[359368533,1745951469512,-588.03,0.00032601,2]
[359368534,1745951469523,-7990.91,0.00032601,2]
[359368535,1745951469532,-933.87,0.00032601,2]
[359368536,1745951469544,-566.44,0.00032601,2]
[359368537,1745951469554,-470.0,0.00032601,2]
[359368538,1745951469564,-470.0,0.00032601,2]
[359368539,1745951469574,-470.0,0.00032601,2]
[359368540,1745951469583,-1021.44,0.00032602,2]
[359368541,1745951469595,-470.0,0.00032602,2]
[359368542,1745951469604,-470.0,0.00032812,2]
[359368543,1745951469614,-470.0,0.00032812,2]
[359368544,1745951469623,-470.0,0.00032812,2]
[359368545,1745951469632,-470.0,0.00032812,2]
[359368546,1745951469641,-470.0,0.00032812,2]
[359368547,1745951469651,-470.0,0.00032812,2]
[359368548,1745951469661,-470.0,0.00032873,2]
[359368549,1745951469670,-470.0,0.00032873,2]
[359368550,1745951469679,-470.0,0.00032875,2]
[359368551,1745951469688,-656.06,0.00032875,2]
[359368552,1745951469698,-588.03,0.00032875,2]
[359368553,1745951469707,-7990.91,0.00032875,2]